fUST/lending_fUST_20240325
["ID","MTS","AMOUNT","RATE_DAILY","PERIOD"]
[320353744,1711319444761,-500.0,0.00054794,120]
[320353746,1711319444770,-500.0,0.00054794,120]
[320353748,1711319444779,-500.0,0.00054794,120]
[320353750,1711319444788,-500.0,0.00054794,120]
[320353752,1711319444798,-500.0,0.00054794,120]
[320353754,1711319444806,-500.0,0.00054794,120]
[320353756,1711319444816,-500.0,0.00054794,120]
[320353758,1711319444824,-500.0,0.00054794,120]
[320353760,1711319444834,-500.0,0.00054794,120]
[320353763,1711319444845,-500.0,0.00054794,120]
[320353764,1711319444854,-380.9167234,0.00054794,120]
[320353766,1711319444863,-500.0,0.00054794,120]
[320353768,1711319444872,-500.0,0.00054794,120]
[320353770,1711319444882,-500.0,0.00054794,120]
[320353772,1711319444892,-500.0,0.00054794,120]
[320353775,1711319444903,-500.0,0.00054794,120]
[320353777,1711319444911,-500.0,0.00054794,60]
[320353778,1711319444920,-1282.82,0.00054794,120]
[320353781,1711319444930,-500.0,0.00054794,120]
[320353782,1711319444938,-1170.31,0.00054794,120]
[320353784,1711319444947,-500.0,0.00054794,120]
[320353786,1711319444956,-500.0,0.00054794,120]
[320353788,1711319444965,-500.0,0.00054794,120]
[320353790,1711319444974,-500.0,0.00054794,120]
[320353792,1711319444983,-500.0,0.00054794,120]
[320353794,1711319444992,-158.89489582,0.00054794,120]
[320353796,1711319445003,-500.0,0.00054794,120]
[320353798,1711319445012,-400.06260893,0.00054794,120]
[320353800,1711319445022,-500.0,0.00054794,120]
[320353802,1711319445032,-500.0,0.00054794,120]
[320353804,1711319445043,-500.0,0.00054794,120]
[320353806,1711319445052,-1172.32,0.00054794,120]
[320353808,1711319445061,-500.0,0.00054794,120]
[320353810,1711319445070,-2660.29,0.00054794,120]
[320353812,1711319445079,-2083.29,0.00054794,120]
[320353814,1711319445089,-500.0,0.00054794,120]
[320353816,1711319445098,-1455.67,0.00054794,120]
[320353818,1711319445107,-1169.21,0.00054794,120]
[320353820,1711319445116,-4632.47,0.00054794,120]
[320353822,1711319445125,-500.0,0.00054794,120]
[320353824,1711319445134,-500.0,0.00054794,120]
[320353826,1711319445143,-11742.59,0.00054794,120]
[320353828,1711319445152,-500.0,0.00054794,120]
[320353830,1711319445162,-500.0,0.00054794,120]
[320353832,1711319445171,-2113.09,0.00054794,2]
[320353834,1711319445180,-500.0,0.00054794,120]
[320353836,1711319445190,-500.0,0.00054794,120]
[320353838,1711319445199,-7811.11,0.00054794,120]
[320353840,1711319445208,-5000.0,0.00054794,120]
[320353842,1711319445218,-2474.78,0.00054794,120]
[320353844,1711319445226,-500.0,0.00054794,120]
[320353846,1711319445236,-500.0,0.00054794,120]
[320353848,1711319445245,-500.0,0.00054794,120]
[320353850,1711319445254,-500.0,0.00054794,120]
[320353852,1711319445263,-877.27,0.00054794,120]
[320353854,1711319445272,-500.0,0.00054794,120]
[320353856,1711319445282,-492.75068134,0.00054794,120]
[320353858,1711319445291,-2629.55,0.00054794,120]
[320353860,1711319445300,-500.0,0.00054794,120]
[320353862,1711319445309,-2209.17,0.00054794,120]
[320353864,1711319445318,-500.0,0.00054794,120]
[320353866,1711319445327,-1188.12,0.00054794,120]
[320353868,1711319445336,-751.21,0.00054794,120]
[320353870,1711319445346,-1684.45,0.00054794,120]
[320353872,1711319445355,-500.0,0.00054794,120]
[320353874,1711319445363,-1215.78,0.00054794,120]
[320353876,1711319445373,-500.0,0.00054794,120]
[320353878,1711319445382,-500.0,0.00054794,120]
[320353880,1711319445392,-514.79,0.00054794,120]
[320353882,1711319445401,-1198.19,0.00054794,120]
[320353884,1711319445411,-11689.94,0.00054794,120]
[320353885,1711319445419,-500.0,0.00054794,120]
[320353888,1711319445429,-6023.28,0.00054794,120]
[320353890,1711319445438,-545.09,0.00054794,120]
[320353892,1711319445448,-1168.31,0.00054794,120]
[320353893,1711319445457,-500.0,0.00054794,120]
[320353895,1711319445467,-518.84,0.00054794,120]
[320353897,1711319445475,-551.63615124,0.00054794,120]
[320353899,1711319445485,-500.0,0.00054794,2]
[320353901,1711319445494,-1894.42,0.00054794,120]
[320353903,1711319445503,-950.5,0.00054794,120]
[320353905,1711319445513,-1167.95,0.00054794,120]
[320353907,1711319445526,-500.0,0.00054794,120]
[320353909,1711319445535,-500.0,0.00054794,60]
[320353911,1711319445545,-773.96,0.00054794,120]
[320353913,1711319445555,-500.0,0.00054794,120]
[320353915,1711319445565,-500.0,0.00054794,120]
[320353917,1711319445575,-13234.98,0.00054794,90]
[320353919,1711319445584,-941.71,0.00054794,120]
[320353922,1711319445594,-1052.97,0.00054794,120]
[320353924,1711319445603,-640.65494652,0.00054794,120]
[320353926,1711319445615,-500.0,0.00054794,120]
[320353927,1711319445624,-1732.68,0.00054794,120]
[320353929,1711319445633,-2791.3,0.00054794,21]
[320353931,1711319445643,-1431.61,0.00054794,120]
[320353933,1711319445652,-500.0,0.00054794,120]
[320353934,1711319445661,-500.0,0.00054794,120]
[320353935,1711319445670,-1023.75,0.00054794,120]
[320353936,1711319445679,-2876.33,0.00054794,120]
[320353937,1711319445688,-1874.85,0.00054794,120]
[320353938,1711319445697,-174.02593452,0.00055117,2]
[320353939,1711319445706,-500.0,0.00056164,30]
[320353940,1711319445715,-174.02593452,0.00056276,2]
[320353941,1711319445725,-174.02593452,0.00057434,2]
[320353942,1711319445735,-500.0,0.00057534,120]
[320353943,1711319445744,-500.0,0.00057534,120]
[320353944,1711319445754,-500.0,0.00057534,120]
[320353945,1711319445764,-516.34,0.00057534,120]
[320353946,1711319445774,-500.0,0.00057534,120]
[320353947,1711319445783,-500.0,0.00057534,120]
[320353948,1711319445793,-500.0,0.00057534,120]
[320353949,1711319445802,-500.0,0.00057534,120]
[320353950,1711319445812,-500.0,0.00057534,120]
[320353951,1711319445822,-500.0,0.00057534,30]
[320353952,1711319445831,-537.90823475,0.00057534,120]
[320353953,1711319445840,-500.0,0.00057534,120]
[320353954,1711319445850,-500.0,0.00057534,120]
[320353955,1711319445860,-500.0,0.00057534,120]
[320353956,1711319445869,-500.0,0.00057534,120]
[320353957,1711319445879,-500.0,0.00057534,120]
[320353958,1711319445890,-500.0,0.00057534,120]
[320353959,1711319445899,-296.12852934,0.00057534,120]
[320353960,1711319445909,-310.89980106,0.00057534,120]
[320353961,1711319445918,-500.0,0.00057534,120]
[320353962,1711319445927,-500.0,0.00057534,120]
[320353963,1711319445936,-500.0,0.00057534,120]
[320353964,1711319445945,-500.0,0.00057534,120]
[320353965,1711319445954,-500.0,0.00057534,120]
[320353966,1711319445964,-500.0,0.00057534,120]
[320353968,1711319445973,-500.0,0.00057534,120]
[320353970,1711319445982,-500.0,0.00057534,120]
[320353972,1711319445991,-500.0,0.00057534,120]
[320353973,1711319446000,-500.0,0.00057534,120]
[320353974,1711319446010,-500.0,0.00057534,120]
[320353975,1711319446019,-500.0,0.00057534,120]
[320353976,1711319446029,-500.0,0.00057534,120]
[320353977,1711319446038,-641.7974143,0.00057534,120]
[320353978,1711319446047,-500.0,0.00057534,120]
[320353979,1711319446057,-500.0,0.00057534,60]
[320353980,1711319446066,-1282.82,0.00057534,120]
[320353981,1711319446076,-500.0,0.00057534,120]
[320353983,1711319446086,-1170.31,0.00057534,120]
[320353985,1711319446095,-500.0,0.00057534,120]
[320353987,1711319446105,-500.0,0.00057534,120]
[320353989,1711319446114,-500.0,0.00057534,120]
[320353991,1711319446124,-500.0,0.00057534,120]
[320353993,1711319446133,-500.0,0.00057534,120]
[320353995,1711319446144,-500.0,0.00057534,120]
[320353997,1711319446154,-500.0,0.00057534,120]
[320353999,1711319446163,-500.0,0.00057534,120]
[320354001,1711319446172,-1172.32,0.00057534,120]
[320354003,1711319446183,-495.91445006,0.00057534,120]
[320354006,1711319446202,-2660.29,0.00057534,120]
[320354008,1711319446213,-2083.29,0.00057534,120]
[320354010,1711319446223,-500.0,0.00057534,120]
[320354012,1711319446232,-1455.67,0.00057534,120]
[320354014,1711319446242,-1169.21,0.00057534,120]
[320354016,1711319446251,-4632.47,0.00057534,120]
[320354018,1711319446261,-500.0,0.00057534,120]
[320354020,1711319446271,-500.0,0.00057534,120]
[320354021,1711319446281,-11742.59,0.00057534,120]
[320354022,1711319446290,-500.0,0.00057534,120]
[320354023,1711319446299,-500.0,0.00057534,120]
[320354024,1711319446309,-2113.09,0.00057534,2]
[320354026,1711319446318,-500.0,0.00057534,120]
[320354028,1711319446329,-500.0,0.00057534,120]
[320354030,1711319446339,-7811.11,0.00057534,120]
[320354032,1711319446348,-5000.0,0.00057534,120]
[320354033,1711319446358,-2474.78,0.00057534,120]
[320354034,1711319446367,-500.0,0.00057534,120]
[320354035,1711319446377,-500.0,0.00057534,120]
[320354036,1711319446387,-501.92301253,0.00057534,120]
[320354037,1711319446397,-500.0,0.00057534,120]
[320354038,1711319446406,-877.27,0.00057534,120]
[320354039,1711319446416,-500.0,0.00057534,120]
[320354040,1711319446425,-2629.55,0.00057534,120]
[320354041,1711319446435,-500.0,0.00057534,120]
[320354042,1711319446445,-2209.17,0.00057534,120]
[320354043,1711319446455,-500.0,0.00057534,120]
[320354044,1711319446464,-1188.12,0.00057534,120]
[320354045,1711319446474,-751.21,0.00057534,120]
[320354046,1711319446483,-1684.45,0.00057534,120]
[320354047,1711319446493,-500.0,0.00057534,120]
[320354048,1711319446503,-1215.78,0.00057534,120]
[320354049,1711319446512,-500.0,0.00057534,120]
[320354050,1711319446523,-500.0,0.00057534,120]
[320354051,1711319446534,-514.79,0.00057534,120]
[320354052,1711319446544,-1198.19,0.00057534,120]
[320354053,1711319446554,-11689.94,0.00057534,120]
[320354054,1711319446564,-500.0,0.00057534,120]
[320354055,1711319446574,-6023.28,0.00057534,120]
[320354056,1711319446584,-545.09,0.00057534,120]
[320354057,1711319446595,-1168.31,0.00057534,120]
[320354058,1711319446605,-500.0,0.00057534,120]
[320354059,1711319446616,-518.84,0.00057534,120]
[320354060,1711319446626,-409.80352286,0.00057534,2]
[320354061,1711319446636,-1894.42,0.00057534,120]
[320354062,1711319446645,-950.5,0.00057534,120]
[320354063,1711319446655,-1167.95,0.00057534,120]
[320354064,1711319446664,-500.0,0.00057534,120]
[320354065,1711319446673,-500.0,0.00057534,60]
[320354066,1711319446683,-773.96,0.00057534,120]
[320354067,1711319446693,-500.0,0.00057534,120]
[320354068,1711319446703,-500.0,0.00057534,120]
[320354069,1711319446713,-13234.98,0.00057534,90]
[320354070,1711319446722,-941.71,0.00057534,120]
[320354071,1711319446732,-1052.97,0.00057534,120]
[320354072,1711319446742,-500.0,0.00057534,120]
[320354073,1711319446751,-1732.68,0.00057534,120]
[320354074,1711319446761,-2791.3,0.00057534,21]
[320354075,1711319446771,-1431.61,0.00057534,120]
[320354076,1711319446780,-500.0,0.00057534,120]
[320354077,1711319446790,-500.0,0.00057534,120]
[320354078,1711319446799,-1023.75,0.00057534,120]
[320354079,1711319446809,-2876.33,0.00057534,120]
[320354080,1711319446818,-1874.85,0.00057534,120]
[320354081,1711319446827,-519.67358971,0.00058173,4]
[320354082,1711319446837,-500.0,0.00058904,30]
[320354083,1711319446846,-3050.78110992,0.00060173,2]
[320354084,1711319446856,-500.0,0.00060273,120]
[320354085,1711319446865,-500.0,0.00060273,120]
[320354087,1711319446874,-500.0,0.00060273,120]
[320354089,1711319446884,-516.34,0.00060273,120]
[320354091,1711319446896,-500.0,0.00060273,120]
[320354093,1711319446905,-500.0,0.00060273,120]
[320354095,1711319446915,-500.0,0.00060273,120]
[320354097,1711319446924,-500.0,0.00060273,120]
[320354098,1711319446935,-500.0,0.00060273,120]
[320354099,1711319446944,-500.0,0.00060273,120]
[320354101,1711319446953,-500.0,0.00060273,120]
[320354103,1711319446962,-500.0,0.00060273,120]
[320354105,1711319446972,-500.0,0.00060273,120]
[320354107,1711319446981,-500.0,0.00060273,120]
[320354109,1711319446991,-500.0,0.00060273,120]
[320354111,1711319447000,-500.0,0.00060273,120]
[320354113,1711319447009,-151.0,0.00060273,120]
[320354115,1711319447019,-500.0,0.00060273,120]
[320354116,1711319447028,-500.0,0.00060273,120]
[320354118,1711319447038,-269.09838249,0.00060273,120]
[320354120,1711319447047,-500.0,0.00060273,120]
[320354122,1711319447056,-500.0,0.00060273,120]
[320354124,1711319447065,-500.0,0.00060273,120]
[320354126,1711319447074,-500.0,0.00060273,120]
[320354128,1711319447083,-500.0,0.00060273,120]
[320354130,1711319447093,-500.0,0.00060273,120]
[320354132,1711319447102,-695.716064,0.00060273,120]
[320354133,1711319447112,-695.716064,0.00060273,120]
[320354135,1711319447122,-500.0,0.00060273,120]
[320354137,1711319447131,-151.0,0.00060273,120]
[320354139,1711319447141,-500.0,0.00060273,120]
[320354140,1711319447151,-500.0,0.00060273,120]
[320354142,1711319447161,-500.0,0.00060273,120]
[320354144,1711319447170,-151.0,0.00060273,120]
[320354146,1711319447179,-595.64444107,0.00060273,60]
[320354148,1711319447189,-1282.82,0.00060273,120]
[320354150,1711319447198,-500.0,0.00060273,120]
[320354152,1711319447207,-1170.31,0.00060273,120]
[320354154,1711319447217,-500.0,0.00060273,120]
[320354156,1711319447226,-500.0,0.00060273,120]
[320354158,1711319447235,-500.0,0.00060273,120]
[320354160,1711319447244,-303.42966616,0.00060273,120]
[320354162,1711319447253,-500.0,0.00060273,120]
[320354164,1711319447266,-500.0,0.00060273,120]
[320354165,1711319447275,-500.0,0.00060273,120]
[320354166,1711319447285,-500.0,0.00060273,120]
[320354167,1711319447294,-1172.32,0.00060273,120]
[320354168,1711319447304,-151.0,0.00060273,120]
[320354169,1711319447313,-151.0,0.00060273,10]
[320354171,1711319447323,-2660.29,0.00060273,120]
[320354173,1711319447332,-2083.29,0.00060273,120]
[320354174,1711319447342,-500.0,0.00060273,120]
[320354175,1711319447351,-1455.67,0.00060273,120]
[320354176,1711319447360,-1169.21,0.00060273,120]
[320354177,1711319447370,-4632.47,0.00060273,120]
[320354178,1711319447379,-500.0,0.00060273,120]
[320354179,1711319447389,-500.0,0.00060273,120]
[320354180,1711319447399,-11742.59,0.00060273,120]
[320354181,1711319447408,-504.06378808,0.00060273,120]
[320354182,1711319447417,-648.46,0.00060273,120]
[320354183,1711319447426,-2113.09,0.00060273,2]
[320354184,1711319447436,-500.0,0.00060273,120]
[320354185,1711319447445,-151.0,0.00060273,120]
[320354186,1711319447454,-500.0,0.00060273,120]
[320354187,1711319447463,-7811.11,0.00060273,120]
[320354188,1711319447473,-5000.0,0.00060273,120]
[320354189,1711319447631,-2474.78,0.00060273,120]
[320354190,1711319447643,-500.0,0.00060273,120]
[320354191,1711319447652,-500.0,0.00060273,120]
[320354192,1711319447662,-500.0,0.00060273,120]
[320354193,1711319447671,-877.27,0.00060273,120]
[320354194,1711319447680,-500.0,0.00060273,120]
[320354195,1711319447690,-2629.55,0.00060273,120]
[320354196,1711319447700,-500.0,0.00060273,120]
[320354197,1711319447709,-2209.17,0.00060273,120]
[320354198,1711319447718,-500.0,0.00060273,120]
[320354199,1711319447727,-1188.12,0.00060273,120]
[320354200,1711319447736,-751.21,0.00060273,120]
[320354201,1711319447745,-1684.45,0.00060273,120]
[320354202,1711319447755,-500.0,0.00060273,120]
[320354203,1711319447764,-1215.78,0.00060273,120]
[320354204,1711319447774,-500.0,0.00060273,120]
[320354205,1711319447784,-500.0,0.00060273,120]
[320354206,1711319447793,-514.79,0.00060273,120]
[320354207,1711319447802,-1198.19,0.00060273,120]
[320354208,1711319447811,-11689.94,0.00060273,120]
[320354209,1711319447820,-500.0,0.00060273,120]
[320354210,1711319447831,-6023.28,0.00060273,120]
[320354211,1711319447842,-151.0,0.00060273,120]
[320354213,1711319447851,-545.09,0.00060273,120]
[320354215,1711319447861,-1168.31,0.00060273,120]
[320354217,1711319447872,-500.0,0.00060273,120]
[320354219,1711319447881,-518.84,0.00060273,120]
[320354221,1711319447890,-1894.42,0.00060273,120]
[320354223,1711319447901,-950.5,0.00060273,120]
[320354225,1711319447910,-1167.95,0.00060273,120]
[320354227,1711319447920,-500.0,0.00060273,120]
[320354229,1711319447929,-500.0,0.00060273,60]
[320354231,1711319447939,-773.96,0.00060273,120]
[320354233,1711319447948,-500.0,0.00060273,120]
[320354235,1711319447957,-500.0,0.00060273,120]
[320354237,1711319447966,-13234.98,0.00060273,90]
[320354239,1711319447975,-941.71,0.00060273,120]
[320354240,1711319447984,-1052.97,0.00060273,120]
[320354241,1711319447993,-500.0,0.00060273,120]
[320354242,1711319448004,-1732.68,0.00060273,120]
[320354243,1711319448014,-2791.3,0.00060273,21]
[320354244,1711319448023,-432.534001,0.00060273,120]
[320354245,1711319448032,-1431.61,0.00060273,120]
[320354246,1711319448042,-432.534001,0.00060273,120]
[320354247,1711319448051,-500.0,0.00060273,120]
[320354248,1711319448060,-500.0,0.00060273,120]
[320354249,1711319448069,-1023.75,0.00060273,120]
[320354250,1711319448078,-151.0,0.00060273,120]
[320354251,1711319448088,-2876.33,0.00060273,120]
[320354252,1711319448097,-1874.85,0.00060273,120]
[320354253,1711319448106,-500.0,0.00061643,120]
[320354254,1711319448115,-695.716064,0.00062912,120]
[320354255,1711319448125,-695.716064,0.00062912,120]
[320354256,1711319448134,-151.0,0.00062912,120]
[320354257,1711319448143,-151.0,0.00062912,10]
[320354258,1711319448153,-151.0,0.00062912,120]
[320354259,1711319448162,-151.0,0.00062912,120]
[320354260,1711319448172,-432.534001,0.00062912,120]
[320354261,1711319448182,-432.534001,0.00062912,120]
[320354262,1711319448191,-151.0,0.00062912,120]
[320354263,1711319448201,-276000.0,0.00062912,2]
[320354264,1711319448210,-430.7411614,0.00062912,120]
[320354265,1711319448219,-430.7411614,0.00062912,120]
[320354266,1711319448228,-430.7411614,0.00062912,120]
[320354267,1711319448238,-430.7411614,0.00062912,120]
[320354268,1711319448248,-430.7411614,0.00062912,120]
[320354269,1711319448257,-430.7411614,0.00062912,120]
[320354270,1711319448267,-430.7411614,0.00062912,120]
[320354271,1711319448276,-430.7411614,0.00062912,120]
[320354272,1711319448287,-430.7411614,0.00062912,120]
[320354273,1711319448297,-430.7411614,0.00062912,120]
[320354274,1711319448307,-430.7411614,0.00062912,120]
[320354275,1711319448316,-430.7411614,0.00062912,120]
[320354277,1711319448326,-430.7411614,0.00062912,120]
[320354279,1711319448336,-430.7411614,0.00062912,120]
[320354280,1711319448345,-430.7411614,0.00062912,120]
[320354281,1711319448354,-430.7411614,0.00062912,120]
[320354282,1711319448363,-430.7411614,0.00062912,120]
[320354283,1711319448373,-430.7411614,0.00062912,120]
[320354284,1711319448382,-430.7411614,0.00062912,120]
[320354285,1711319448392,-431.24,0.00062912,120]
[320354286,1711319448401,-158.26791504,0.00062912,120]
[320354287,1711319448411,-158.26791504,0.00062912,120]
[320354288,1711319448420,-158.26791504,0.00062912,120]
[320354289,1711319448429,-158.26791504,0.00062912,120]
[320354290,1711319448439,-158.26791504,0.00062912,120]
[320354291,1711319448448,-158.26791504,0.00062912,120]
[320354292,1711319448457,-158.26791504,0.00062912,120]
[320354293,1711319448467,-158.26791504,0.00062912,120]
[320354294,1711319448477,-158.26791504,0.00062912,120]
[320354295,1711319448485,-158.26791504,0.00062912,120]
[320354296,1711319448494,-158.26791504,0.00062912,120]
[320354297,1711319448503,-158.26791504,0.00062912,120]
[320354298,1711319448512,-126191.95696669,0.00063012,30]
[320354299,1711319448522,-695.716064,0.00063012,120]
[320354300,1711319448533,-695.716064,0.00063012,120]
[320354301,1711319448544,-151.0,0.00063012,120]
[320354302,1711319448553,-151.0,0.00063012,10]
[320354303,1711319448562,-151.0,0.00063012,120]
[320354304,1711319448572,-151.0,0.00063012,120]
[320354305,1711319448581,-432.534001,0.00063012,120]
[320354306,1711319448591,-432.534001,0.00063012,120]
[320354307,1711319448600,-151.0,0.00063012,120]
[320354308,1711319448609,-500.0,0.00063013,120]
[320354309,1711319448620,-500.0,0.00063013,120]
[320354310,1711319448630,-500.0,0.00063013,120]
[320354311,1711319448640,-516.34,0.00063013,120]
[320354312,1711319448650,-500.0,0.00063013,120]
[320354313,1711319448660,-500.0,0.00063013,120]
[320354314,1711319448670,-500.0,0.00063013,120]
[320354315,1711319448679,-500.0,0.00063013,120]
[320354316,1711319448688,-500.0,0.00063013,120]
[320354317,1711319448697,-500.0,0.00063013,120]
[320354318,1711319448706,-500.0,0.00063013,120]
[320354319,1711319448715,-500.0,0.00063013,120]
[320354320,1711319448725,-500.0,0.00063013,120]
[320354321,1711319448734,-500.0,0.00063013,120]
[320354322,1711319448744,-495.45920647,0.00063013,120]
[320354323,1711319448753,-262.97062408,0.00063013,120]
[320354324,1711319448762,-500.0,0.00063013,120]
[320354325,1711319448771,-500.0,0.00063013,120]
[320354326,1711319448781,-500.0,0.00063013,120]
[320354327,1711319448790,-500.0,0.00063013,120]
[320354328,1711319448801,-500.0,0.00063013,120]
[320354329,1711319448811,-500.0,0.00063013,120]
[320354330,1711319448822,-500.0,0.00063013,120]
[320354331,1711319448832,-500.0,0.00063013,120]
[320354332,1711319448842,-695.716064,0.00063013,120]
[320354333,1711319448853,-695.716064,0.00063013,120]
[320354334,1711319448862,-500.0,0.00063013,120]
[320354335,1711319448871,-500.0,0.00063013,120]
[320354336,1711319448880,-500.0,0.00063013,120]
[320354337,1711319448890,-500.0,0.00063013,120]
[320354338,1711319448899,-151.0,0.00063013,120]
[320354339,1711319448908,-1282.82,0.00063013,120]
[320354340,1711319448917,-500.0,0.00063013,120]
[320354341,1711319448926,-1170.31,0.00063013,120]
[320354342,1711319448936,-500.0,0.00063013,120]
[320354343,1711319448945,-500.0,0.00063013,120]
[320354344,1711319448954,-500.0,0.00063013,120]
[320354345,1711319448963,-500.0,0.00063013,120]
[320354346,1711319448972,-500.0,0.00063013,120]
[320354347,1711319448981,-500.0,0.00063013,120]
[320354348,1711319448990,-500.0,0.00063013,120]
[320354349,1711319448999,-1172.32,0.00063013,120]
[320354350,1711319449008,-151.0,0.00063013,10]
[320354351,1711319449017,-2660.29,0.00063013,120]
[320354352,1711319449026,-2083.29,0.00063013,120]
[320354353,1711319449035,-500.0,0.00063013,120]
[320354354,1711319449045,-1455.67,0.00063013,120]
[320354355,1711319449054,-1169.21,0.00063013,120]
[320354356,1711319449063,-4632.47,0.00063013,120]
[320354357,1711319449072,-500.0,0.00063013,120]
[320354358,1711319449081,-191.30699915,0.00063013,120]
[320354359,1711319449091,-11742.59,0.00063013,120]
[320354360,1711319449100,-2113.09,0.00063013,2]
[320354361,1711319449109,-610.86196942,0.00063013,120]
[320354362,1711319449118,-258.683948,0.00063013,120]
[320354363,1711319449127,-500.0,0.00063013,120]
[320354364,1711319449136,-6495.58697837,0.00063013,120]
[320354365,1711319449853,-158.26791504,0.00062912,120]
[320354366,1711319449863,-158.26791504,0.00062912,120]
[320354367,1711319449872,-158.26791504,0.00062912,120]
[320354368,1711319449881,-158.26791504,0.00062912,120]
[320354369,1711319449890,-158.26791504,0.00062912,120]
[320354370,1711319449901,-1315.52302163,0.00063013,120]
[320354371,1711319449912,-5000.0,0.00063013,120]
[320354372,1711319449922,-2474.78,0.00063013,120]
[320354373,1711319449933,-500.0,0.00063013,120]
[320354374,1711319449943,-500.0,0.00063013,120]
[320354375,1711319449952,-500.0,0.00063013,120]
[320354376,1711319449961,-877.27,0.00063013,120]
[320354377,1711319449970,-500.0,0.00063013,120]
[320354378,1711319449979,-2629.55,0.00063013,120]
[320354379,1711319449989,-500.0,0.00063013,120]
[320354380,1711319449998,-920.11545411,0.00063013,120]
[320354381,1711319450010,-374.9181638,0.00063013,120]
[320354390,1711320632545,-150.0,0.00049,68]
[320354392,1711320632555,-172.92189,0.00052231,2]
[320354394,1711320632564,-185.716181,0.00052445,120]
[320354396,1711320632574,-899.80468137,0.00052468,2]
[320354398,1711320632586,-22013.15784811,0.00052468,2]
[320354452,1711320638578,-1987.03747052,0.00052468,2]
[320354454,1711320638588,-322.41621,0.00052611,2]
[320354457,1711320638600,-2906.37249151,0.000529,30]
[320354459,1711320638615,-12409.29875246,0.000529,30]
[320354461,1711320638627,-156.915522,0.00053555,30]
[320354464,1711320638639,-174.86356,0.00053555,30]
[320354466,1711320638650,-170.95796658,0.00053563,14]
[320354468,1711320638662,-5509.92488768,0.00053662,2]
[320354471,1711320638680,-2695.37340746,0.00053662,2]
[320354473,1711320638690,-9001.56369244,0.00054737,5]
[320354475,1711320638700,-318.86481701,0.00054791,4]
[320354478,1711320638711,-1031.2729888,0.00054791,4]
[320354480,1711320638722,-157.35614108,0.00054791,4]
[320354482,1711320638733,-299.17163132,0.00054791,2]
[320354484,1711320638745,-500.0,0.00054791,120]
[320354486,1711320638756,-747.78016003,0.00054792,2]
[320354488,1711320638767,-469.15229474,0.00054792,4]
[320354491,1711320638778,-863.98813889,0.00054792,4]
[320354493,1711320638789,-187.21282215,0.00054792,4]
[320354495,1711320638800,-595.64881378,0.00054792,120]
[320354497,1711320638811,-617.28162156,0.00054792,4]
[320354499,1711320638822,-644.74178789,0.00054792,4]
[320354502,1711320638833,-284.85720977,0.00054792,4]
[320354504,1711320638845,-302.44791801,0.00054792,4]
[320354506,1711320638855,-221.62642672,0.00054792,4]
[320354508,1711320638865,-400.0,0.00054792,2]
[320354510,1711320638878,-170.85177647,0.00054792,2]
[320354512,1711320638888,-1722.04968379,0.00054792,2]
[320354515,1711320638900,-179.11694063,0.00054792,4]
[320354518,1711320638926,-180.28197066,0.00054792,2]
[320354521,1711320638937,-364.08086755,0.00054793,4]
[320354523,1711320638950,-5541.00282832,0.00054793,4]
[320354525,1711320638962,-42880.91277357,0.00054793,4]